[Event "Catalan Youth Championship 2024"]
[Site "Cambrils"]
[Date "2024.03.24"]
[Round "2.17"]
[White "Parra Ordorica, Arnau"]
[Black "Ano Pla, Gerard"]
[Result "0-1"]
[ECO "E11"]
[WhiteElo "1976"]
[BlackElo "2230"]
[Annotator "RC"]
[PlyCount "104"]
[EventDate "2024.03.13"]
[EventType "swiss"]
[EventCountry "ESP"]
[SourceTitle "playchess.com"]
[Source "ChessBase"]
[SourceQuality "1"]
[TimeControl "5400+30"]

1. d4 {[%emt 0:05:18]} d5 {[%emt 0:00:04]} 2. c4 {[%emt 0:00:11]} e6 {[%emt 0:00:10]} 3. Nf3 {[%emt 0:00:13]} Nf6 {[%emt 0:00:07]} 4. g3 {[%emt 0:00:09]} Bb4+ {[%emt 0:00:03]} 5. Bd2 {[%emt 0:03:03]} Be7 {[%emt 0:00:07]} 6. Bg2 {[%emt 0:01:37]} O-O {[%emt 0:01:24]} 7. O-O {[%emt 0:00:47]} c6 {[%emt 0:00:11]} 8. b3 {[%emt 0:02:20]} Nbd7 {[%emt 0:00:45]} 9. Nc3 {[%emt 0:01:05]} b6 {[%emt 0:00:59]} 10. e4 {[%emt 0:09:55]} Nxe4 {[%emt 0:13:45]} 11. Nxe4 {[%emt 0:03:05]} dxe4 {[%emt 0:00:02]} 12. Ne5 {[%emt 0:00:21]} Nxe5 {[%emt 0:07:36]} 13. dxe5 {[%emt 0:00:53]} Qc7 {[%emt 0:17:45]} 14. Bxe4 {[%emt 0:01:04]} Rd8 {[%emt 0:04:03]} 15. Qc2 {[%emt 0:01:08]} h6 {[%emt 0:02:13]} 16. Be3 {[%emt 0:08:02]} Bb7 {[%emt 0:10:04]} 17. c5 {[%emt 0:59:49]} Rd7 {[%emt 0:06:19]} 18. f4 {[%emt 0:00:00]} Rad8 {[%emt 0:04:14]} 19. b4 {[%emt 0:00:00]} bxc5 {[%emt 0:05:32]} 20. bxc5 {[%emt 0:00:00]} Ba6 {[%emt 0:04:13]} 21. Rfd1 {[%emt 0:00:00]} Qa5 {[%emt 0:03:22]} 22. Kg2 {[%emt 0:00:00]} Rxd1 {[%emt 0:02:29]} 23. Rxd1 {[%emt 0:00:00]} Rxd1 {[%emt 0:00:03]} 24. Qxd1 {[%emt 0:00:00]} Qxa2+ {[%emt 0:00:07]} 25. Kh3 {[%emt 0:00:00]} Bb5 {[%emt 0:01:20]} 26. f5 {[%emt 0:00:00]} exf5 {[%emt 0:16:33]} 27. Bxf5 {[%emt 0:00:00]} g6 {[%emt 0:00:30]} 28. Bd7 {[%emt 0:00:00]} h5 {[%emt 0:00:00]} 29. e6 {[%emt 0:00:00]} f6 {[%emt 0:00:00]} 30. Qf3 {[%emt 0:00:00]} Be2 {[%emt 0:00:00]} 31. Qf2 {[%emt 0:00:00]} Bg4+ {[%emt 0:00:00]} 32. Kg2 {[%emt 0:00:00]} Qd5+ {[%emt 0:00:00]} 33. Kg1 {[%emt 0:00:00]} Bh3 {[%emt 0:00:00]} 34. Qc2 {[%emt 0:00:00]} Kg7 {[%emt 0:00:00]} 35. Be8 {[%emt 0:00:00]} Bf5 {[%emt 0:00:00]} 36. Qg2 {[%emt 0:00:00]} Qxe6 {[%emt 0:00:00]} 37. Qf3 {[%emt 0:00:00]} Be4 {[%emt 0:00:00]} 38. Qf4 {[%emt 0:00:00]} g5 {[%emt 0:00:00]} 39. Qc7 {[%emt 0:11:00]} Bd5 {[%emt 0:00:00]} 40. Kf2 {[%emt 0:00:00]} Qf5+ {[%emt 0:00:00]} 41. Ke1 {[%emt 0:00:00]} Qe4 {[%emt 0:00:00]} 42. Kd2 {[%emt 0:00:00]} Qb4+ {[%emt 0:02:34]} 43. Ke2 {[%emt 0:00:00]} Qb2+ {[%emt 0:01:08]} 44. Bd2 {[%emt 0:00:00]} Qb5+ {[%emt 0:00:30]} 45. Ke1 {[%emt 0:00:00]} Qb1+ {[%emt 0:00:20]} 46. Kf2 {[%emt 0:00:00]} Qf5+ {[%emt 0:04:58]} 47. Ke1 {[%emt 0:00:00]} Qe4+ {[%emt 0:00:00]} 48. Kf2 {[%emt 0:00:00]} Qg2+ {[%emt 0:00:00]} 49. Ke3 {[%emt 0:00:00]} Qe4+ {[%emt 0:00:00]} 50. Kf2 {[%emt 0:05:30]} Qf3+ {[%emt 0:00:00]} 51. Ke1 {[%emt 0:00:00]} Qe4+ {[%emt 0:00:00]} 52. Kf2 {[%emt 0:00:00]} Kf8 {[%emt 0:00:00]} 0-1

[Event "Catalan Youth Championship 2024"]
[Site "Cambrils"]
[Date "2024.03.24"]
[Round "2.18"]
[White "Sanchez Aguilar, Arnau"]
[Black "Boix Redorta, Roc"]
[Result "1/2-1/2"]
[ECO "B48"]
[WhiteElo "2168"]
[BlackElo "1957"]
[Annotator "RC"]
[PlyCount "78"]
[EventDate "2024.03.13"]
[EventType "swiss"]
[EventCountry "ESP"]
[SourceTitle "playchess.com"]
[Source "ChessBase"]
[SourceQuality "1"]
[TimeControl "5400+30"]

1. e4 {[%emt 1:31:00]} c5 {[%emt 1:31:00]} 2. Nf3 {[%emt 0:00:30]} Nc6 {[%emt 0:00:30]} 3. d4 {[%emt 0:00:30]} cxd4 {[%emt 0:00:30]} 4. Nxd4 {[%emt 0:00:30]} Nf6 {[%emt 0:00:30]} 5. Nc3 {[%emt 0:00:30]} e6 {[%emt 0:00:30]} 6. a3 {[%emt 0:00:30]} Qc7 {[%emt 0:00:30]} 7. Be3 {[%emt 0:00:30]} a6 {[%emt 0:00:30]} 8. f3 {[%emt 0:00:30]} b5 {[%emt 0:00:30]} 9. Be2 {[%emt 0:00:30]} Rb8 {[%emt 0:00:30]} 10. O-O {[%emt 0:00:30]} Bd6 {[%emt 0:00:30]} 11. f4 {[%emt 0:00:30]} Nxd4 {[%emt 0:00:30]} 12. Qxd4 {[%emt 0:00:30]} e5 {[%emt 0:00:30]} 13. Qd2 {[%emt 0:00:30]} exf4 {[%emt 0:00:30]} 14. Bxf4 {[%emt 0:00:30]} Bxf4 {[%emt 0:00:30]} 15. Rxf4 {[%emt 0:00:30]} Bb7 {[%emt 0:00:30]} 16. Raf1 {[%emt 0:00:30]} O-O {[%emt 0:00:30]} 17. Rxf6 {[%emt 0:00:30]} gxf6 {[%emt 0:00:30]} 18. Rxf6 {[%emt 0:00:30]} Qc5+ {[%emt 0:00:30]} 19. Kh1 {[%emt 0:00:30]} Rbe8 {[%emt 0:00:30]} 20. Bd3 {[%emt 0:00:30]} Re5 {[%emt 0:00:30]} 21. Qf4 {[%emt 0:00:30]} d6 {[%emt 0:00:30]} 22. h3 {[%emt 0:00:30]} Qc7 {[%emt 0:00:30]} 23. Nd5 {[%emt 0:00:30]} Bxd5 {[%emt 0:00:30]} 24. exd5 {[%emt 0:00:30]} Qe7 {[%emt 0:00:30]} 25. Qh6 {[%emt 0:00:30]} Re1+ {[%emt 0:00:30]} 26. Kh2 {[%emt 0:00:30]} Qe5+ {[%emt 0:00:30]} 27. g3 {[%emt 0:00:30]} Re2+ {[%emt 0:00:30]} 28. Bxe2 {[%emt 0:00:30]} Qxe2+ {[%emt 0:00:30]} 29. Kg1 {[%emt 0:00:30]} Qd1+ {[%emt 0:00:30]} 30. Rf1 {[%emt 0:00:30]} Qxd5 {[%emt 0:00:30]} 31. Qe3 {[%emt 0:00:30]} Rc8 {[%emt 0:00:30]} 32. c3 {[%emt 0:00:30]} Kg7 {[%emt 0:00:30]} 33. Kh2 {[%emt 0:00:30]} Rc4 {[%emt 0:00:30]} 34. Rf2 {[%emt 0:00:30]} Qe5 {[%emt 0:00:30]} 35. Qa7 {[%emt 0:00:30]} Qd5 {[%emt 0:00:30]} 36. Qxa6 {[%emt 0:00:30]} Re4 {[%emt 0:00:30]} 37. Qc8 {[%emt 0:00:30]} Re1 {[%emt 0:00:30]} 38. Qg4+ {[%emt 0:00:30]} Kf8 {[%emt 0:00:30]} 39. Qc8+ {[%emt 0:00:30]} Kg7 {[%emt 0:00:30]} 1/2-1/2

[Event "Catalan Youth Championship 2024"]
[Site "Cambrils"]
[Date "2024.03.24"]
[Round "2.19"]
[White "Catalan Monteagudo, Elm"]
[Black "Garcia Caro, Juan Alber"]
[Result "1/2-1/2"]
[ECO "E07"]
[WhiteElo "1954"]
[BlackElo "2128"]
[Annotator "RC"]
[PlyCount "165"]
[EventDate "2024.03.13"]
[EventType "swiss"]
[EventCountry "ESP"]
[SourceTitle "playchess.com"]
[Source "ChessBase"]
[SourceQuality "1"]
[TimeControl "5400+30"]

1. d4 {[%emt 0:00:03]} d5 {[%emt 0:01:31]} 2. c4 {[%emt 0:00:10]} e6 {[%emt 0:00:09]} 3. Nf3 {[%emt 0:00:11]} Nf6 {[%emt 0:00:48]} 4. g3 {[%emt 0:00:06]} Bb4+ {[%emt 0:00:13]} 5. Bd2 {[%emt 0:00:09]} Be7 {[%emt 0:00:05]} 6. Bg2 {[%emt 0:00:05]} O-O {[%emt 0:00:31]} 7. O-O {[%emt 0:00:04]} Nbd7 {[%emt 0:00:12]} 8. cxd5 {[%emt 0:03:29]} exd5 {[%emt 0:00:53]} 9. Bf4 {[%emt 0:00:45]} c6 {[%emt 0:02:17]} 10. Nc3 {[%emt 0:00:25]} Re8 {[%emt 0:04:13]} 11. a3 {[%emt 1:30:33]} Nf8 {[%emt 0:13:34]} 12. Ne5 {[%emt 0:00:30]} Ng6 {[%emt 1:12:04]} 13. Nxg6 {[%emt 0:00:00]} hxg6 {[%emt 0:00:00]} 14. f3 {[%emt 0:01:00]} Nh5 {[%emt 0:01:00]} 15. e4 {[%emt 0:00:00]} Nxf4 {[%emt 0:00:00]} 16. gxf4 {[%emt 0:01:00]} Be6 {[%emt 0:01:00]} 17. Qd3 {[%emt 0:00:30]} Qd7 {[%emt 0:00:30]} 18. Rad1 {[%emt 0:00:30]} Red8 {[%emt 0:00:30]} 19. Kh1 {[%emt 0:00:30]} Bf6 {[%emt 0:00:30]} 20. f5 {[%emt 0:00:00]} gxf5 {[%emt 0:00:30]} 21. e5 {[%emt 0:00:00]} Be7 {[%emt 0:00:00]} 22. f4 {[%emt 0:01:30]} c5 {[%emt 0:01:00]} 23. Ne2 {[%emt 0:00:00]} Rac8 {[%emt 0:00:30]} 24. Rf3 {[%emt 0:01:00]} cxd4 {[%emt 0:00:30]} 25. Nxd4 {[%emt 0:00:00]} Rc4 {[%emt 0:00:30]} 26. Bh3 {[%emt 0:01:00]} g6 {[%emt 0:00:00]} 27. Rg3 {[%emt 0:00:00]} Kf8 {[%emt 0:00:00]} 28. Bg2 {[%emt 0:01:00]} Rc7 {[%emt 0:00:00]} 29. Bf3 {[%emt 0:00:00]} Bc5 {[%emt 0:00:00]} 30. Nb5 {[%emt 0:00:00]} Rcc8 {[%emt 0:00:00]} 31. b4 {[%emt 0:00:00]} a6 {[%emt 0:00:00]} 32. Nc3 {[%emt 0:00:00]} d4 {[%emt 0:00:00]} 33. bxc5 {[%emt 0:00:00]} dxc3 {[%emt 0:00:00]} 34. Qxc3 {[%emt 0:00:00]} Qa4 {[%emt 0:04:30]} 35. Rxd8+ {[%emt 0:00:30]} Rxd8 {[%emt 0:00:00]} 36. Qb4 {[%emt 0:03:30]} Qxb4 {[%emt 0:00:00]} 37. axb4 {[%emt 0:00:00]} Bd5 {[%emt 0:00:00]} 38. Bxd5 {[%emt 0:00:00]} Rxd5 {[%emt 0:00:00]} 39. Rb3 {[%emt 0:00:00]} Rd4 {[%emt 0:00:00]} 40. b5 {[%emt 0:00:00]} axb5 {[%emt 0:01:07]} 41. Rxb5 {[%emt 0:00:00]} Rxf4 {[%emt 0:00:18]} 42. Rxb7 {[%emt 0:00:00]} Rc4 {[%emt 0:00:08]} 43. Rc7 {[%emt 0:03:30]} Re4 {[%emt 0:02:03]} 44. c6 {[%emt 0:00:00]} Rxe5 {[%emt 0:01:24]} 45. Kg2 {[%emt 0:00:00]} Rc5 {[%emt 0:00:00]} 46. Kg3 {[%emt 0:00:00]} Ke8 {[%emt 0:00:00]} 47. Kf4 {[%emt 0:00:23]} f6 {[%emt 0:00:03]} 48. h4 {[%emt 0:00:36]} Rc4+ {[%emt 0:01:07]} 49. Kg3 {[%emt 0:02:01]} Kd8 {[%emt 0:00:40]} 50. Rg7 {[%emt 0:00:00]} Rxc6 {[%emt 0:00:20]} 51. Rxg6 {[%emt 0:00:00]} Ke7 {[%emt 0:00:03]} 52. h5 {[%emt 0:00:00]} Rc1 {[%emt 0:01:47]} 53. Rg7+ {[%emt 0:00:20]} Kf8 {[%emt 0:00:30]} 54. Ra7 {[%emt 0:00:20]} Rh1 {[%emt 0:00:00]} 55. Kf4 {[%emt 0:00:12]} Rxh5 {[%emt 0:00:00]} 56. Rb7 {[%emt 0:00:06]} Rg5 {[%emt 0:00:00]} 57. Ra7 {[%emt 0:00:11]} Rg7 {[%emt 0:00:00]} 58. Ra8+ {[%emt 0:00:17]} Kf7 {[%emt 0:00:00]} 59. Kxf5 {[%emt 0:00:04]} Rg5+ {[%emt 0:00:01]} 60. Kf4 {[%emt 0:00:02]} Rb5 {[%emt 0:00:14]} 61. Ra7+ {[%emt 0:00:28]} Kg6 {[%emt 0:00:02]} 62. Ra6 {[%emt 0:00:01]} Rb4+ {[%emt 0:00:20]} 63. Kf3 {[%emt 0:00:02]} Kg5 {[%emt 0:00:24]} 64. Kf2 {[%emt 0:05:27]} f5 {[%emt 0:04:29]} 65. Ra3 {[%emt 0:00:00]} Rb2+ {[%emt 0:00:00]} 66. Kf3 {[%emt 0:00:00]} Rh2 {[%emt 0:00:00]} 67. Kg3 {[%emt 0:00:00]} Rh1 {[%emt 0:00:00]} 68. Kf2 {[%emt 0:00:00]} Rh4 {[%emt 0:00:12]} 69. Ra5 {[%emt 0:00:00]} Kg4 {[%emt 0:00:34]} 70. Kf1 {[%emt 0:00:00]} Rh2 {[%emt 0:02:14]} 71. Kg1 {[%emt 0:00:00]} Rb2 {[%emt 0:00:30]} 72. Kf1 {[%emt 0:00:00]} f4 {[%emt 0:00:00]} 73. Ra3 {[%emt 0:00:00]} Rb1+ {[%emt 0:00:00]} 74. Kf2 {[%emt 0:00:00]} Rb2+ {[%emt 0:00:00]} 75. Kf1 {[%emt 0:00:00]} Rb5 {[%emt 0:00:00]} 76. Kf2 {[%emt 0:00:03]} Rb2+ {[%emt 0:00:00]} 77. Kf1 {[%emt 0:06:27]} Kf5 {[%emt 0:02:00]} 78. Ra5+ {[%emt 0:00:00]} Ke4 {[%emt 0:00:15]} 79. Ra4+ {[%emt 0:00:00]} Kf3 {[%emt 0:00:19]} 80. Ra3+ {[%emt 0:00:00]} Kg4 {[%emt 0:00:06]} 81. Rc3 {[%emt 0:00:00]} Rd2 {[%emt 0:00:52]} 82. Ra3 {[%emt 0:00:00]} Rh2 {[%emt 0:01:07]} 83. Kg1 {[%emt 0:00:00]} 1/2-1/2

[Event "Catalan Youth Championship 2024"]
[Site "Cambrils"]
[Date "2024.03.24"]
[Round "2.20"]
[White "Funes Ostos, Aitor"]
[Black "Lobo Pereira, Arami"]
[Result "1-0"]
[ECO "E14"]
[WhiteElo "2125"]
[BlackElo "1947"]
[Annotator "RC"]
[PlyCount "73"]
[EventDate "2024.03.13"]
[EventType "swiss"]
[EventCountry "ESP"]
[SourceTitle "playchess.com"]
[Source "ChessBase"]
[SourceQuality "1"]
[TimeControl "5400+30"]

1. c4 {[%emt 0:00:03]} e6 {[%emt 0:00:09]} 2. Nf3 {[%emt 0:00:20]} d5 {[%emt 0:02:57]} 3. e3 {[%emt 0:00:05]} Nf6 {[%emt 0:00:12]} 4. Nc3 {[%emt 0:00:06]} b6 {[%emt 0:00:42]} 5. b3 {[%emt 0:01:18]} Bb7 {[%emt 0:01:36]} 6. Bb2 {[%emt 0:00:10]} Nbd7 {[%emt 0:02:24]} 7. d4 {[%emt 0:00:20]} Bd6 {[%emt 0:01:04]} 8. Bd3 {[%emt 0:00:13]} a6 {[%emt 0:00:21]} 9. O-O {[%emt 0:00:40]} O-O {[%emt 0:00:05]} 10. cxd5 {[%emt 0:03:06]} exd5 {[%emt 0:00:25]} 11. Ne2 {[%emt 0:00:33]} Qe7 {[%emt 0:00:52]} 12. Ng3 {[%emt 0:03:00]} g6 {[%emt 0:02:57]} 13. Rc1 {[%emt 0:10:29]} Ne4 {[%emt 0:05:07]} 14. Qc2 {[%emt 0:08:44]} f5 {[%emt 0:16:51]} 15. Ne2 {[%emt 0:06:39]} c6 {[%emt 0:06:21]} 16. Ne1 {[%emt 0:07:43]} Rae8 {[%emt 0:09:43]} 17. g3 {[%emt 0:03:35]} Ndf6 {[%emt 0:07:06]} 18. f3 {[%emt 0:03:11]} Ng5 {[%emt 0:03:04]} 19. Ng2 {[%emt 0:00:09]} Nh3+ {[%emt 0:04:26]} 20. Kh1 {[%emt 0:00:06]} Qg7 {[%emt 0:04:49]} 21. Nef4 {[%emt 0:09:28]} Qh6 {[%emt 0:02:26]} 22. Rce1 {[%emt 0:07:26]} Nh5 {[%emt 0:07:49]} 23. Nxh5 {[%emt 0:00:33]} Qxh5 {[%emt 0:00:12]} 24. f4 {[%emt 0:00:19]} c5 {[%emt 0:08:33]} 25. dxc5 {[%emt 0:03:08]} bxc5 {[%emt 0:01:31]} 26. Qc3 {[%emt 0:03:46]} d4 {[%emt 0:00:46]} 27. Bc4+ {[%emt 0:00:42]} Kg7 {[%emt 0:00:48]} 28. exd4 {[%emt 0:00:48]} Rxe1 {[%emt 0:01:43]} 29. dxc5+ {[%emt 0:01:38]} Be5 {[%emt 0:02:43]} 30. Qxe1 {[%emt 0:00:06]} Bxb2 {[%emt 0:00:14]} 31. Qe7+ {[%emt 0:00:06]} Kh6 {[%emt 0:00:04]} 32. Qxf8+ {[%emt 0:00:09]} Bg7 {[%emt 0:00:02]} 33. Qe7 {[%emt 0:00:16]} Be4 {[%emt 0:02:05]} 34. c6 {[%emt 0:02:41]} Bd4 {[%emt 0:01:40]} 35. c7 {[%emt 0:01:42]} Nf2+ {[%emt 0:05:14]} 36. Rxf2 {[%emt 0:00:03]} Bxf2 {[%emt 0:00:47]} 37. Qf8# {[%emt 0:00:07]} 1-0

[Event "Catalan Youth Championship 2024"]
[Site "Cambrils"]
[Date "2024.03.24"]
[Round "2.21"]
[White "Rocamora Martorell, Ferran"]
[Black "Jurado Coderch, Heribert"]
[Result "0-1"]
[ECO "E01"]
[WhiteElo "2118"]
[BlackElo "1960"]
[Annotator "RC"]
[PlyCount "76"]
[EventDate "2024.03.13"]
[EventType "swiss"]
[EventCountry "ESP"]
[SourceTitle "playchess.com"]
[Source "ChessBase"]
[SourceQuality "1"]
[TimeControl "5400+30"]

1. Nf3 {[%emt 0:04:36]} d5 {[%emt 0:00:23]} 2. c4 {[%emt 0:00:31]} e6 {[%emt 0:00:21]} 3. g3 {[%emt 0:00:51]} Nf6 {[%emt 0:00:36]} 4. Bg2 {[%emt 0:00:21]} c6 {[%emt 0:05:41]} 5. O-O {[%emt 0:04:56]} Nbd7 {[%emt 0:02:03]} 6. d4 {[%emt 0:01:13]} Bd6 {[%emt 0:01:27]} 7. Nc3 {[%emt 0:06:51]} dxc4 {[%emt 0:06:37]} 8. Nd2 {[%emt 0:08:00]} Nb6 {[%emt 0:05:13]} 9. Na4 {[%emt 0:10:20]} Nxa4 {[%emt 0:07:06]} 10. Qxa4 {[%emt 0:00:13]} O-O {[%emt 0:00:15]} 11. Qc2 {[%emt 0:10:19]} b5 {[%emt 0:06:08]} 12. a4 {[%emt 0:04:02]} Rb8 {[%emt 0:01:08]} 13. Bxc6 {[%emt 0:01:36]} a6 {[%emt 0:00:39]} 14. Ne4 {[%emt 0:07:27]} Nxe4 {[%emt 0:00:52]} 15. Bxe4 {[%emt 0:03:56]} h6 {[%emt 0:03:22]} 16. Rd1 {[%emt 0:03:16]} Qc7 {[%emt 0:02:35]} 17. Bd2 {[%emt 0:04:15]} Bb7 {[%emt 0:02:27]} 18. axb5 {[%emt 0:05:48]} Bxe4 {[%emt 0:01:25]} 19. Qxe4 {[%emt 0:00:11]} axb5 {[%emt 0:00:09]} 20. Be3 {[%emt 0:01:30]} Qb7 {[%emt 0:05:55]} 21. d5 {[%emt 0:03:38]} Ra8 {[%emt 0:04:21]} 22. Rxa8 {[%emt 0:07:56]} Qxa8 {[%emt 0:01:00]} 23. Qd4 {[%emt 0:00:52]} e5 {[%emt 0:07:26]} 24. Qb6 {[%emt 0:06:07]} Qa4 {[%emt 0:01:00]} 25. Qxd6 {[%emt 0:01:06]} Qxd1+ {[%emt 0:00:10]} 26. Kg2 {[%emt 0:00:03]} Ra8 {[%emt 0:07:40]} 27. Qxe5 {[%emt 0:02:01]} Ra1 {[%emt 0:01:01]} 28. Qe8+ {[%emt 0:01:11]} Kh7 {[%emt 0:00:11]} 29. Qxf7 {[%emt 0:00:51]} Qf1+ {[%emt 0:15:36]} 30. Kf3 {[%emt 0:00:08]} Qh1+ {[%emt 0:00:02]} 31. Kf4 {[%emt 0:00:36]} Qb1 {[%emt 0:02:43]} 32. Bd4 {[%emt 0:01:01]} Qg6 {[%emt 0:00:59]} 33. Qf5 {[%emt 0:00:39]} b4 {[%emt 0:00:58]} 34. d6 {[%emt 0:00:30]} c3 {[%emt 0:03:57]} 35. bxc3 {[%emt 0:00:27]} b3 {[%emt 0:00:05]} 36. c4 {[%emt 0:00:38]} Rd1 {[%emt 0:00:27]} 37. Qxg6+ {[%emt 0:00:32]} Kxg6 {[%emt 0:00:07]} 38. Be5 {[%emt 0:00:06]} Rxd6 {[%emt 0:00:30]} 0-1

[Event "Catalan Youth Championship 2024"]
[Site "Cambrils"]
[Date "2024.03.24"]
[Round "2.22"]
[White "Pujol Biosca, Joan"]
[Black "Serrano Batova, Vicent"]
[Result "0-1"]
[ECO "B36"]
[WhiteElo "1979"]
[BlackElo "2104"]
[Annotator "RC"]
[PlyCount "74"]
[EventDate "2024.03.13"]
[EventType "swiss"]
[EventCountry "ESP"]
[SourceTitle "playchess.com"]
[Source "ChessBase"]
[SourceQuality "1"]
[TimeControl "5400+30"]

1. e4 {[%emt 0:00:03]} c5 {[%emt 0:00:43]} 2. Nf3 {[%emt 0:00:16]} Nc6 {[%emt 0:00:06]} 3. d4 {[%emt 0:00:15]} cxd4 {[%emt 0:00:17]} 4. Nxd4 {[%emt 0:00:16]} g6 {[%emt 0:00:01]} 5. c4 {[%emt 0:00:32]} Nf6 {[%emt 0:00:02]} 6. Nc3 {[%emt 0:00:14]} d6 {[%emt 0:00:01]} 7. Be2 {[%emt 0:00:30]} Nxd4 {[%emt 0:00:02]} 8. Qxd4 {[%emt 0:00:12]} Bg7 {[%emt 0:00:02]} 9. Be3 {[%emt 0:01:22]} O-O {[%emt 0:00:10]} 10. Qd3 {[%emt 0:00:07]} a6 {[%emt 0:00:25]} 11. O-O {[%emt 0:03:11]} Bd7 {[%emt 0:00:06]} 12. f4 {[%emt 0:07:24]} b5 {[%emt 0:01:25]} 13. Bf3 {[%emt 0:07:14]} Rb8 {[%emt 0:06:41]} 14. cxb5 {[%emt 0:02:57]} axb5 {[%emt 0:07:32]} 15. Rfd1 {[%emt 0:12:45]} b4 {[%emt 0:03:50]} 16. Ne2 {[%emt 0:01:04]} Bb5 {[%emt 0:03:49]} 17. Qd2 {[%emt 0:01:02]} Bxe2 {[%emt 0:02:33]} 18. Qxe2 {[%emt 0:00:15]} Qa5 {[%emt 0:05:28]} 19. Bd4 {[%emt 0:06:36]} Rfc8 {[%emt 0:06:28]} 20. e5 {[%emt 0:09:56]} Ne8 {[%emt 0:01:53]} 21. exd6 {[%emt 0:06:55]} Bxd4+ {[%emt 0:01:30]} 22. Rxd4 {[%emt 0:00:08]} Qa7 {[%emt 0:08:45]} 23. Qf2 {[%emt 0:01:29]} Nxd6 {[%emt 0:02:39]} 24. Rd2 {[%emt 0:02:32]} Rc5 {[%emt 0:05:28]} 25. g3 {[%emt 0:07:12]} Rbc8 {[%emt 0:05:27]} 26. Kg2 {[%emt 0:02:44]} Qa5 {[%emt 0:08:58]} 27. Re2 {[%emt 0:03:16]} e6 {[%emt 0:00:56]} 28. Qd4 {[%emt 0:11:10]} Nf5 {[%emt 0:02:38]} 29. Qf2 {[%emt 0:00:48]} h5 {[%emt 0:11:26]} 30. Rd2 {[%emt 0:02:27]} b3 {[%emt 0:05:02]} 31. a3 {[%emt 0:02:03]} Qxd2 {[%emt 0:01:28]} 32. Qxd2 {[%emt 0:00:20]} Rc2 {[%emt 0:00:03]} 33. Rd1 {[%emt 0:01:54]} Ne3+ {[%emt 0:00:02]} 34. Kg1 {[%emt 0:00:16]} Nxd1 {[%emt 0:02:15]} 35. Qxd1 {[%emt 0:00:40]} Rc1 {[%emt 0:00:06]} 36. Kf2 {[%emt 0:01:49]} R8c2+ {[%emt 0:00:35]} 37. Qe2 {[%emt 0:00:23]} Rb1 {[%emt 0:00:48]} 0-1

[Event "Catalan Youth Championship 2024"]
[Site "Cambrils"]
[Date "2024.03.24"]
[Round "2.23"]
[White "Gomez Navais, Marcal"]
[Black "Vara Soler, Luis"]
[Result "1-0"]
[ECO "C45"]
[WhiteElo "2086"]
[BlackElo "1889"]
[Annotator "NA RC"]
[PlyCount "113"]
[EventDate "2024.03.13"]
[EventType "swiss"]
[EventCountry "ESP"]
[SourceTitle "playchess.com"]
[Source "ChessBase"]
[SourceQuality "1"]
[TimeControl "5400+30"]

1. e4 {[%emt 0:00:03]} e5 {[%emt 0:00:05]} 2. Nf3 {[%emt 0:00:24]} Nc6 {[%emt 0:00:06]} 3. d4 {[%emt 0:00:05]} exd4 {[%emt 0:00:13]} 4. Nxd4 {[%emt 0:00:08]} Bc5 {[%emt 0:00:24]} 5. Nb3 {[%emt 0:00:04]} Bb6 {[%emt 0:00:04]} 6. Nc3 {[%emt 0:00:06]} Nf6 {[%emt 0:01:04]} 7. Qe2 {[%emt 0:00:15]} d6 {[%emt 0:00:48]} 8. Bg5 {[%emt 0:00:06]} h6 {[%emt 1:31:46]} 9. Bh4 {[%emt 0:00:25]} g5 {[%emt 0:00:00]} 10. Bg3 {[%emt 0:00:17]} Qe7 {[%emt 0:00:00]} 11. O-O-O {[%emt 0:03:41]} Be6 {[%emt 0:01:30]} 12. Kb1 {[%emt 0:07:39]} O-O-O {[%emt 0:00:30]} 13. h4 {[%emt 1:23:47]} Kb8 {[%emt 0:00:30]} 14. f3 {[%emt 0:00:30]} Nh5 {[%emt 0:00:00]} 15. Bf2 {[%emt 0:00:00]} Nf4 {[%emt 0:00:00]} 16. Qe1 {[%emt 0:01:00]} Bxf2 {[%emt 0:00:00]} 17. Qxf2 {[%emt 0:00:00]} gxh4 {[%emt 0:00:00]} 18. Rxh4 {[%emt 0:01:00]} Ng6 {[%emt 0:00:00]} 19. Rh5 {[%emt 0:00:30]} Qf6 {[%emt 0:03:00]} 20. Qe3 {[%emt 0:00:30]} Qf4 {[%emt 0:00:00]} 21. Qf2 {[%emt 0:00:00]} Qf6 {[%emt 0:01:00]} 22. Nd4 {[%emt 0:01:00]} Nge5 {[%emt 0:00:00]} 23. Nxc6+ {[%emt 0:00:00]} Nxc6 {[%emt 0:01:00]} 24. Qe3 {[%emt 0:00:00]} Rdg8 {[%emt 0:00:30]} 25. g4 {[%emt 0:01:30]} Rg5 {[%emt 0:00:00]} 26. Rh2 {[%emt 0:00:30]} Ra5 {[%emt 0:01:00]} 27. Be2 {[%emt 0:00:30]} Ne5 {[%emt 0:00:30]} 28. Rdh1 {[%emt 0:00:00]} a6 {[%emt 0:00:30]} 29. g5 {[%emt 0:00:00]} Qd8 {[%emt 0:00:00]} 30. f4 {[%emt 0:00:00]} Ng4 {[%emt 0:00:00]} 31. Bxg4 {[%emt 0:00:00]} Bxg4 {[%emt 0:00:00]} 32. gxh6 {[%emt 0:00:00]} Qe8 {[%emt 0:00:04]} 33. Qg3 {[%emt 0:00:00]} f5 {[%emt 0:00:34]} 34. exf5 {[%emt 0:03:30]} Bxf5 {[%emt 0:02:22]} 35. Re1 {[%emt 0:00:00]} Qg6 {[%emt 0:00:30]} 36. Qh4 {[%emt 0:00:00]} Rc5 {[%emt 0:00:00]} 37. Qe7 {[%emt 0:00:00]} Qg3 {[%emt 0:00:00]} 38. Rhh1 {[%emt 0:00:00]} Qxf4 {[%emt 0:00:00]} 39. Qg7 {[%emt 0:00:00]} Rh7 {[%emt 0:02:00]} 40. Qg8+ {[%emt 0:00:00]} Ka7 {[%emt 0:00:00]} 41. Ref1 {[%emt 0:00:00]} Rxh6 {[%emt 0:00:00]} 42. Rhg1 {[%emt 0:00:00]} Qd2 {[%emt 0:01:30]} 43. Qb3 {[%emt 0:00:00]} Rh2 {[%emt 0:00:00]} 44. Rc1 {[%emt 0:00:00]} Qf2 {[%emt 0:01:00]} 45. Rgf1 {[%emt 0:00:00]} Qg2 {[%emt 0:00:00]} 46. Qa4 {[%emt 0:00:00]} b5 {[%emt 0:00:00]} 47. Qb3 {[%emt 0:00:52]} b4 {[%emt 0:00:00]} 48. Qxb4 {[%emt 0:00:03]} Bxc2+ {[%emt 0:00:00]} 49. Ka1 {[%emt 0:06:35]} Bd3 {[%emt 0:02:30]} 50. Rf4 {[%emt 0:00:00]} Qd2 {[%emt 0:00:30]} 51. Rg1 {[%emt 0:01:00]} Rg2 {[%emt 0:00:00]} 52. Rh1 {[%emt 0:00:00]} Qe3 {[%emt 0:01:00]} 53. Rf8 {[%emt 0:01:00]} Rg1+ {[%emt 0:00:00]} 54. Nb1 {[%emt 0:00:00]} Rb5 {[%emt 0:01:00]} 55. Qh4 {[%emt 0:00:00]} Qc1 {[%emt 0:00:00]} 56. Qf2+ {[%emt 0:01:30]} Kb7 {[%emt 0:00:19]} 57. Rxg1 {[%emt 0:00:30]} 1-0